fUST/lending_fUST_20240225
["ID","MTS","AMOUNT","RATE_DAILY","PERIOD"]
[315085841,1708807845407,-416.104501,0.00020875,2]
[315085842,1708807845417,-4296.879178,0.00020875,2]
[315085843,1708807845426,-416.104501,0.00020875,2]
[315085844,1708807845438,-4296.879178,0.00020875,2]
[315085845,1708807845447,-500.0,0.00020875,2]
[315085846,1708807845456,-500.0,0.00020875,2]
[315085847,1708807845466,-500.0,0.00020875,2]
[315085848,1708807845479,-500.0,0.00020875,2]
[315085849,1708807845488,-4322.171433,0.00020875,2]
[315085850,1708807845497,-4322.171433,0.00020875,2]
[315085851,1708807845507,-151.0,0.00020875,2]
[315085853,1708807845515,-151.0,0.00020875,2]
[315085854,1708807845524,-153.0,0.00020875,2]
[315085855,1708807845533,-153.0,0.00020875,2]
[315085856,1708807845542,-8049.51637995,0.00020876,2]
[315085857,1708807845552,-37145.26840278,0.00020876,2]
[315085858,1708807845561,-151.0,0.00020876,2]
[315085859,1708807845571,-73715.69993915,0.00020884,2]
[315085860,1708807845580,-229.353616,0.00020912,2]
[315085861,1708807845588,-465.311196,0.00020912,2]
[315085862,1708807845597,-499.239771,0.00020912,2]
[315085863,1708807845606,-229.353615,0.00020912,2]
[315085864,1708807845615,-192.910194,0.00020912,2]
[315085866,1708807845625,-7900.75,0.00020938,2]
[315085868,1708807845634,-544.66,0.00020938,2]
[315085869,1708807845643,-531.63,0.00020938,2]
[315085870,1708807845652,-722.34,0.00020939,2]
[315085871,1708807845661,-5844.88,0.00020939,2]
[315085872,1708807845670,-500.0,0.00020939,2]
[315085873,1708807845679,-500.0,0.00020939,2]
[315085874,1708807845689,-607.89,0.00020939,2]
[315085875,1708807845698,-918.59,0.00020939,2]
[315085876,1708807845708,-500.0,0.0002094,2]
[315085877,1708807845717,-789.86,0.0002094,2]
[315085878,1708807845726,-919.79,0.0002094,2]
[315085879,1708807845735,-762.15,0.0002094,2]
[315085880,1708807845745,-724.39,0.0002094,2]
[315085881,1708807845755,-3792.14,0.0002094,2]
[315085883,1708807845764,-682.24,0.0002094,2]
[315085885,1708807845773,-6126.52,0.0002094,2]
[315085886,1708807845782,-1520.65,0.0002094,2]
[315085887,1708807845791,-1438.14,0.00020941,2]
[315085888,1708807845800,-1257.33,0.00020941,2]
[315085889,1708807845809,-5231.56,0.00020941,2]
[315085890,1708807845819,-2257.86,0.00020941,2]
[315085891,1708807845829,-389.10621473,0.00020942,2]
[315085892,1708807845838,-500.0,0.00020942,2]
[315085893,1708807845848,-1272.54,0.00020942,2]
[315085894,1708807845857,-1492.14,0.00020942,2]
[315085895,1708807845867,-621.82,0.00020942,2]
[315085896,1708807845876,-792.19,0.00020942,2]
[315085897,1708807845887,-1447.21,0.00020942,2]
[315085898,1708807845983,-500.0,0.00020942,2]
[315085899,1708807845993,-500.0,0.0002095,2]
[315085900,1708807846002,-696.66,0.0002095,2]
[315085901,1708807846011,-500.0,0.0002095,2]
[315085903,1708807846020,-500.0,0.0002095,2]
[315085904,1708807846030,-191.03920829,0.0002095,2]
[315085905,1708807846039,-500.0,0.0002095,2]
[315085907,1708807846048,-1566.91,0.0002095,2]
[315085909,1708807846057,-488.36,0.0002095,2]
[315085910,1708807846066,-1133.71,0.00020951,2]
[315085912,1708807846075,-166.666666,0.00020973,2]
[315085914,1708807846084,-96449.91356154,0.00021039,2]
[315085916,1708807846094,-16929.66710821,0.00021039,2]
[315085918,1708807846103,-416.104501,0.00021039,2]
[315085920,1708807846112,-4296.879178,0.00021039,2]
[315085922,1708807846121,-416.104501,0.00021039,2]
[315085923,1708807846130,-686.26116719,0.00021039,2]
[315085937,1708807846341,-596.53827503,0.0001957,2]
[315085938,1708807846351,-1228.07310518,0.00021039,2]
[315085939,1708807846363,-2382.54490563,0.00021039,2]
[315085940,1708807846373,-4322.171433,0.00021039,2]
[315085942,1708807846382,-4322.171433,0.00021039,2]
[315085943,1708807846392,-151.0,0.00021039,2]
[315085944,1708807846402,-151.0,0.00021039,2]
[315085945,1708807846412,-1146.768077,0.00021059,2]
[315085947,1708807846421,-2326.555981,0.00021059,2]
[315085948,1708807846431,-200.5294442,0.00021068,2]
[315085949,1708807846441,-200.5294442,0.00021068,2]
[315085951,1708807846451,-200.5294442,0.00021068,2]
[315085952,1708807846461,-200.5294442,0.00021068,2]
[315085953,1708807846474,-200.5294442,0.00021068,2]
[315085955,1708807846483,-13560.44543382,0.00021144,2]
[315085956,1708807846573,-500.0,0.00019578,2]
[315085957,1708807846583,-500.0,0.00019578,2]
[315085958,1708807846593,-500.0,0.00019578,2]
[315085959,1708807846603,-500.0,0.00019578,2]
[315085960,1708807846613,-193.55109875,0.00019578,2]
[315085961,1708807846622,-26594.94099545,0.00021144,2]
[315085962,1708807847380,-500.0,0.00019578,2]
[315085963,1708807847392,-500.0,0.00019578,2]
[315085964,1708807847404,-500.0,0.00019578,2]
[315085965,1708807847414,-500.0,0.00019578,2]
[315085966,1708807847426,-500.0,0.00019578,2]
[315085967,1708807847438,-500.0,0.00019578,2]
[315085968,1708807847449,-500.0,0.00019578,2]
[315085969,1708807847460,-500.0,0.00019578,2]
[315085970,1708807847476,-505.19397537,0.00019578,2]
[315085971,1708807847488,-505.19397537,0.00019578,2]
[315085972,1708807847499,-505.19397537,0.00019578,2]
[315085973,1708807847511,-505.19397537,0.00019578,2]
[315085974,1708807847522,-505.19397537,0.00019578,2]
[315085975,1708807847533,-505.19397537,0.00019578,2]
[315085976,1708807847545,-505.19397537,0.00019578,2]
[315085977,1708807847556,-505.19397537,0.00019578,2]
[315085978,1708807847567,-505.19397537,0.00019578,2]
[315085979,1708807847578,-505.19397537,0.00019578,2]
[315085980,1708807847589,-505.19397537,0.00019578,2]
[315085981,1708807847600,-505.19397537,0.00019578,2]
[315085982,1708807847613,-505.19397537,0.00019578,2]
[315085983,1708807847624,-505.19397537,0.00019578,2]
[315085984,1708807847635,-505.19397537,0.00019578,2]
[315085985,1708807847647,-505.19397537,0.00019578,2]
[315085986,1708807847658,-505.19397537,0.00019578,2]
[315085987,1708807847670,-505.19397537,0.00019578,2]
[315085988,1708807847680,-505.19397537,0.00019578,2]
[315085989,1708807847690,-505.19397537,0.00019578,2]
[315085990,1708807847699,-505.19397537,0.00019578,2]
[315085991,1708807847708,-505.19397537,0.00019578,2]
[315085992,1708807847717,-505.19397537,0.00019578,2]
[315085993,1708807847727,-505.19397537,0.00019578,2]
[315085994,1708807847736,-505.19397537,0.00019578,2]
[315085995,1708807847746,-505.19397537,0.00019578,2]
[315085996,1708807847755,-505.19397537,0.00019578,2]
[315085997,1708807847764,-505.19397537,0.00019578,2]
[315085998,1708807847774,-505.19397537,0.00019578,2]
[315085999,1708807847783,-505.19397537,0.00019578,2]
[315086000,1708807847792,-505.19397537,0.00019578,2]
[315086001,1708807847802,-505.19397537,0.00019578,2]
[315086002,1708807847812,-13585.9,0.00020536,3]
[315086003,1708807847822,-9844.61357073,0.00021144,2]
[315086004,1708807847832,-151.0,0.00021144,2]
[315086005,1708807847841,-50000.0,0.00021148,2]
[315086006,1708807847851,-152.902411,0.00021171,2]
[315086007,1708807847861,-229.353616,0.00021171,2]
[315086008,1708807847871,-465.311196,0.00021171,2]
[315086009,1708807847881,-499.239771,0.00021171,2]
[315086010,1708807847891,-229.353615,0.00021171,2]
[315086011,1708807847900,-192.910194,0.00021171,2]
[315086012,1708807847910,-300.0,0.00021208,2]
[315086013,1708807847919,-7900.75,0.00021212,2]
[315086014,1708807848088,-544.66,0.00021212,2]
[315086015,1708807848102,-531.63,0.00021212,2]
[315086016,1708807848111,-722.34,0.00021213,2]
[315086017,1708807848120,-5844.88,0.00021213,2]
[315086018,1708807848129,-500.0,0.00021213,2]
[315086019,1708807848139,-500.0,0.00021213,2]
[315086020,1708807848148,-607.89,0.00021213,2]
[315086021,1708807848157,-918.59,0.00021213,2]
[315086022,1708807848167,-500.0,0.00021214,2]
[315086023,1708807848177,-789.86,0.00021214,2]
[315086024,1708807848187,-919.79,0.00021214,2]
[315086025,1708807848197,-762.15,0.00021214,2]
[315086026,1708807848206,-724.39,0.00021214,2]
[315086027,1708807848215,-3792.14,0.00021214,2]
[315086028,1708807848225,-682.24,0.00021214,2]
[315086029,1708807848235,-6126.52,0.00021214,2]
[315086030,1708807848244,-87.40556938,0.00021214,2]
[315086031,1708807848257,-1433.24443062,0.00021214,2]
[315086032,1708807848266,-151.0,0.00021214,2]
[315086033,1708807848275,-151.0,0.00021214,2]
[315086034,1708807848285,-1438.14,0.00021215,2]
[315086035,1708807848294,-1257.33,0.00021215,2]
[315086036,1708807848303,-5231.56,0.00021215,2]
[315086037,1708807848313,-2257.86,0.00021215,2]
[315086038,1708807848333,-1272.54,0.00021216,2]
[315086039,1708807848344,-1492.14,0.00021216,2]
[315086040,1708807848354,-621.82,0.00021216,2]
[315086041,1708807848364,-792.19,0.00021216,2]
[315086042,1708807848374,-1447.21,0.00021216,2]
[315086043,1708807848384,-500.0,0.00021216,2]
[315086044,1708807848393,-500.0,0.00021224,2]
[315086045,1708807848403,-696.66,0.00021224,2]
[315086046,1708807848413,-500.0,0.00021224,2]
[315086047,1708807848422,-500.0,0.00021224,2]
[315086048,1708807848432,-500.0,0.00021224,2]
[315086049,1708807848442,-1566.91,0.00021224,2]
[315086050,1708807848452,-1133.71,0.00021225,2]
[315086051,1708807848463,-153.8214087,0.00021233,2]
[315086052,1708807848475,-633.14050765,0.00021255,2]
[315086053,1708807848485,-534.92028589,0.00021265,2]
[315086054,1708807848495,-207.93121894,0.00021265,2]
[315086055,1708807848505,-1427.44642374,0.00021265,2]
[315086056,1708807848514,-2044.71520203,0.00021265,2]
[315086057,1708807848527,-179.71414308,0.00021265,2]
[315086058,1708807848536,-323.99482184,0.00021269,2]
[315086059,1708807848546,-1146.768077,0.00021316,2]
[315086060,1708807848556,-2326.555981,0.00021316,2]
[315086061,1708807848566,-300.0,0.00021377,2]
[315086062,1708807848576,-224.82525338,0.00021389,2]
[315086063,1708807848586,-150.0,0.00021389,2]
[315086064,1708807848596,-5000.0,0.00021415,2]
[315086065,1708807848605,-166.666666,0.00021422,2]
[315086066,1708807848615,-153.0,0.00021423,2]
[315086067,1708807848625,-153.0,0.00021423,2]
[315086068,1708807848634,-153.0,0.00021423,2]
[315086069,1708807848643,-154.0038895,0.00021423,2]
[315086070,1708807848653,-153.0,0.00021423,2]
[315086071,1708807848663,-229.353616,0.00021429,2]
[315086072,1708807848674,-465.311196,0.00021429,2]
[315086073,1708807848685,-499.239771,0.00021429,2]
[315086074,1708807848694,-229.353615,0.00021429,2]
[315086075,1708807848704,-192.910194,0.00021429,2]
[315086076,1708807848715,-4322.171433,0.00021429,2]
[315086077,1708807848724,-4322.171433,0.00021429,2]
[315086078,1708807848734,-7900.75,0.00021486,2]
[315086079,1708807848743,-544.66,0.00021486,2]
[315086080,1708807848753,-531.63,0.00021486,2]
[315086081,1708807848763,-416.104501,0.00021487,2]
[315086082,1708807848773,-416.104501,0.00021487,2]
[315086083,1708807848782,-4296.879178,0.00021487,2]
[315086084,1708807848791,-722.34,0.00021487,2]
[315086085,1708807848801,-5844.88,0.00021487,2]
[315086086,1708807848810,-500.0,0.00021487,2]
[315086087,1708807848819,-500.0,0.00021487,2]
[315086088,1708807848829,-607.89,0.00021487,2]
[315086089,1708807848838,-918.59,0.00021487,2]
[315086090,1708807848848,-500.0,0.00021488,2]
[315086091,1708807848858,-789.86,0.00021488,2]
[315086092,1708807848867,-919.79,0.00021488,2]
[315086093,1708807848878,-762.15,0.00021488,2]
[315086094,1708807848887,-724.39,0.00021488,2]
[315086095,1708807848898,-3792.14,0.00021488,2]
[315086096,1708807848907,-682.24,0.00021488,2]
[315086097,1708807848917,-6126.52,0.00021488,2]
[315086098,1708807848927,-1520.65,0.00021488,2]
[315086099,1708807848937,-1438.14,0.00021489,2]
[315086100,1708807848946,-1257.33,0.00021489,2]
[315086101,1708807848955,-5231.56,0.00021489,2]
[315086102,1708807848964,-2257.86,0.00021489,2]
[315086103,1708807848974,-1272.54,0.0002149,2]
[315086104,1708807848983,-1492.14,0.0002149,2]
[315086105,1708807848992,-621.82,0.0002149,2]
[315086106,1708807849002,-792.19,0.0002149,2]
[315086107,1708807849011,-1447.21,0.0002149,2]
[315086108,1708807849021,-620.50613827,0.0002149,2]
[315086109,1708807849030,-357.19812697,0.00021498,2]
[315086110,1708807849039,-696.66,0.00021498,2]
[315086111,1708807849048,-500.0,0.00021498,2]
[315086112,1708807849058,-500.0,0.00021498,2]
[315086113,1708807849067,-500.0,0.00021498,2]
[315086114,1708807849077,-1566.91,0.00021498,2]
[315086115,1708807849087,-1133.71,0.00021499,2]
[315086116,1708807849096,-300.0,0.00021547,2]
[315086117,1708807849106,-50000.0,0.00021552,2]
[315086118,1708807849115,-151.0,0.00021552,2]
[315086119,1708807849125,-151.0,0.00021552,2]
[315086120,1708807849134,-151.0,0.00021552,2]
[315086121,1708807849144,-796.010687,0.00021552,2]
[315086122,1708807849154,-796.010687,0.00021552,2]
[315086123,1708807849164,-424.595215,0.00021552,2]
[315086124,1708807849174,-424.595215,0.00021552,2]
[315086125,1708807849183,-151.0,0.00021552,2]
[315086126,1708807849193,-151.0,0.00021552,2]
[315086127,1708807849203,-50000.0,0.0002156,2]
[315086128,1708807849212,-151.0,0.0002156,2]
[315086129,1708807849223,-151.0,0.0002156,2]
[315086130,1708807849234,-50000.0,0.00021569,2]
[315086131,1708807849243,-416.104501,0.00021569,2]
[315086132,1708807849254,-416.104501,0.00021569,2]
[315086133,1708807849264,-4296.879178,0.00021569,2]
[315086134,1708807849274,-4322.171433,0.00021569,2]
[315086135,1708807849283,-4322.171433,0.00021569,2]
[315086136,1708807849293,-1146.768077,0.00021573,2]
[315086137,1708807849303,-2326.555981,0.00021573,2]
[315086138,1708807849313,-5000.0,0.00021613,2]
[315086139,1708807849322,-50000.0,0.00021638,2]
[315086140,1708807849332,-151.0,0.00021638,2]
[315086141,1708807849341,-298.68547,0.00021638,2]
[315086142,1708807849350,-796.010687,0.00021638,2]
[315086143,1708807849360,-796.010687,0.00021638,2]
[315086144,1708807849369,-424.595215,0.00021638,2]
[315086145,1708807849379,-424.595215,0.00021638,2]
[315086146,1708807849388,-151.0,0.00021638,2]
[315086147,1708807849398,-152.902411,0.00021687,2]
[315086148,1708807849408,-180.237806,0.00021687,2]
[315086149,1708807849419,-180.092666,0.00021687,2]
[315086150,1708807849429,-229.353616,0.00021687,2]
[315086151,1708807849440,-465.311196,0.00021687,2]
[315086152,1708807849450,-499.239771,0.00021687,2]
[315086153,1708807849460,-229.353615,0.00021687,2]
[315086154,1708807849470,-192.910194,0.00021687,2]
[315086155,1708807849483,-5000.0,0.00021706,2]
[315086156,1708807849492,-5000.0,0.00021706,2]
[315086157,1708807849502,-5000.0,0.00021708,2]
[315086158,1708807849511,-300.0,0.00021717,2]
[315086159,1708807849522,-7900.75,0.0002176,2]
[315086160,1708807849532,-544.66,0.0002176,2]
[315086161,1708807849541,-531.63,0.0002176,2]
[315086162,1708807849553,-722.34,0.00021761,2]
[315086163,1708807849564,-5844.88,0.00021761,2]
[315086164,1708807849573,-570.73686123,0.00021761,2]
[315086165,1708807849583,-151.333288,0.00021761,2]
[315086166,1708807849592,-500.0,0.00021761,2]
[315086167,1708807849602,-607.89,0.00021761,2]
[315086168,1708807849611,-918.59,0.00021761,2]
[315086169,1708807849621,-500.0,0.00021762,2]
[315086170,1708807849630,-789.86,0.00021762,2]
[315086171,1708807849640,-919.79,0.00021762,2]
[315086172,1708807849649,-762.15,0.00021762,2]
[315086173,1708807849659,-724.39,0.00021762,2]
[315086174,1708807849669,-3792.14,0.00021762,2]
[315086175,1708807849679,-682.24,0.00021762,2]
[315086176,1708807849689,-6126.52,0.00021762,2]
[315086177,1708807849698,-1520.65,0.00021762,2]
[315086178,1708807849707,-151.0,0.00021762,2]
[315086179,1708807849717,-151.0,0.00021762,2]
[315086180,1708807849727,-1438.14,0.00021763,2]
[315086181,1708807849736,-1257.33,0.00021763,2]
[315086182,1708807849746,-5231.56,0.00021763,2]
[315086183,1708807849755,-2257.86,0.00021763,2]
[315086184,1708807849764,-191.464653,0.00021764,2]
[315086185,1708807849773,-1272.54,0.00021764,2]
[315086186,1708807849783,-1492.14,0.00021764,2]
[315086187,1708807849793,-621.82,0.00021764,2]
[315086188,1708807849802,-792.19,0.00021764,2]
[315086189,1708807849811,-1447.21,0.00021764,2]
[315086190,1708807849821,-151.040049,0.00021772,2]
[315086191,1708807849830,-696.66,0.00021772,2]
[315086192,1708807849840,-500.0,0.00021772,2]
[315086193,1708807849850,-500.0,0.00021772,2]
[315086194,1708807849860,-500.0,0.00021772,2]
[315086195,1708807849869,-1566.91,0.00021772,2]
[315086196,1708807849879,-1133.71,0.00021773,2]
[315086197,1708807849888,-1000.0,0.00021836,2]
[315086198,1708807849897,-1000.0,0.00021836,2]
[315086199,1708807849907,-300.0,0.00021887,2]
[315086200,1708807849917,-1000.0,0.00021917,5]
[315086201,1708807849927,-1000.0,0.00021917,5]
[315086202,1708807849936,-1029.46204829,0.00021917,5]
[315086203,1708807849946,-1987.8970187,0.00021918,2]
[315086204,1708807849956,-176.617994,0.00021918,2]
[315086205,1708807849966,-627.99429575,0.00022,2]
[315086206,1708807849975,-1585.66810892,0.00022,4]
[315086207,1708807849986,-987.0,0.00022,4]
[315086208,1708807849995,-7900.75,0.00022034,2]
[315086209,1708807850005,-544.66,0.00022034,2]
[315086210,1708807850014,-531.63,0.00022034,2]
[315086211,1708807850024,-722.34,0.00022035,2]
[315086212,1708807850033,-5844.88,0.00022035,2]
[315086213,1708807850042,-500.0,0.00022035,2]
[315086214,1708807850052,-607.89,0.00022035,2]
[315086215,1708807850061,-918.59,0.00022035,2]
[315086216,1708807850070,-500.0,0.00022036,2]
[315086217,1708807850080,-789.86,0.00022036,2]
[315086218,1708807850090,-919.79,0.00022036,2]
[315086219,1708807850099,-762.15,0.00022036,2]
[315086220,1708807850108,-724.39,0.00022036,2]
[315086221,1708807850118,-3792.14,0.00022036,2]
[315086222,1708807850127,-682.24,0.00022036,2]
[315086223,1708807850136,-6126.52,0.00022036,2]
[315086224,1708807850146,-1520.65,0.00022036,2]
[315086225,1708807850155,-1438.14,0.00022037,2]
[315086226,1708807850164,-1257.33,0.00022037,2]
[315086227,1708807850174,-5231.56,0.00022037,2]
[315086228,1708807850183,-2257.86,0.00022037,2]
[315086229,1708807850193,-1272.54,0.00022038,2]
[315086230,1708807850202,-1492.14,0.00022038,2]
[315086231,1708807850212,-621.82,0.00022038,2]
[315086232,1708807850221,-792.19,0.00022038,2]
[315086233,1708807850231,-1447.21,0.00022038,2]
[315086234,1708807850241,-696.66,0.00022046,2]
[315086235,1708807850250,-500.0,0.00022046,2]
[315086236,1708807850260,-500.0,0.00022046,2]
[315086237,1708807850270,-500.0,0.00022046,2]
[315086238,1708807850279,-1566.91,0.00022046,2]
[315086239,1708807850289,-416.104501,0.00022047,2]
[315086240,1708807850298,-416.104501,0.00022047,2]
[315086241,1708807850308,-4296.879178,0.00022047,2]
[315086242,1708807850317,-1133.71,0.00022047,2]
[315086243,1708807850326,-4322.171433,0.00022047,2]
[315086244,1708807850336,-4322.171433,0.00022047,2]
[315086245,1708807850345,-300.0,0.00022056,2]
[315086246,1708807850355,-153.0,0.00022082,2]
[315086247,1708807850364,-899.108275,0.000221,30]
[315086248,1708807850374,-3740.90580674,0.00022121,2]
[315086249,1708807850383,-325.2199134,0.00022121,3]
[315086250,1708807850392,-2266.20470776,0.00022121,2]
[315086251,1708807850403,-196.56779318,0.00022121,3]
[315086252,1708807850412,-3736.44986358,0.00022121,2]
[315086253,1708807850422,-876.30651515,0.00022121,3]
[315086254,1708807850432,-3116.98844395,0.00022121,2]
[315086255,1708807850440,-484.44548388,0.00022121,3]
[315086256,1708807850450,-1356.44735485,0.00022121,3]
[315086257,1708807850459,-9930.78076284,0.00022121,2]
[315086258,1708807850473,-1579.62214155,0.00022121,2]
[315086259,1708807850482,-234.2824,0.00022148,2]
[315086260,1708807850492,-1979.58446663,0.00022149,4]
[315086261,1708807850501,-153.0,0.00022162,2]
[315086262,1708807850512,-153.0,0.00022162,2]
[315086263,1708807850521,-153.0,0.00022162,2]
[315086264,1708807850531,-153.0,0.00022162,2]
[315086265,1708807850545,-153.0,0.00022162,2]
[315086266,1708807850554,-153.0,0.00022162,2]
[315086267,1708807850563,-306.5018833,0.00022162,2]
[315086268,1708807850573,-153.0,0.00022162,2]
[315086269,1708807850582,-153.0,0.00022162,2]
[315086270,1708807850592,-153.0,0.00022162,2]
[315086271,1708807850602,-50000.0,0.0002219,2]
[315086272,1708807850611,-151.0,0.0002219,2]
[315086273,1708807850621,-796.010687,0.0002219,2]
[315086274,1708807850630,-796.010687,0.0002219,2]
[315086275,1708807850641,-424.595215,0.0002219,2]
[315086276,1708807850650,-424.595215,0.0002219,2]
[315086277,1708807850660,-151.0,0.0002219,2]
[315086278,1708807850669,-151.0,0.0002219,2]
[315086279,1708807850679,-278.404442,0.0002219,2]
[315086280,1708807850689,-165.879963,0.000222,2]
[315086281,1708807850698,-582.0,0.000222,2]
[315086282,1708807850707,-153.0,0.00022219,2]
[315086283,1708807850717,-300.0,0.00022226,2]
[315086284,1708807850726,-31374.1968032,0.00022259,2]
[315086285,1708807850735,-45876.20914143,0.0002226,2]
[315086286,1708807850751,-3760.68198086,0.0002226,2]
[315086288,1708807923083,-407.82208207,0.00019568,2]
[315086289,1708807923115,-500.0,0.00019568,2]
[315086290,1708807923147,-5539.24,0.00019568,3]
[315086291,1708807923179,-10477.75,0.00019568,3]
[315086292,1708807923211,-8731.46,0.00019568,3]
[315086293,1708807923242,-508.9,0.00019569,2]
[315086294,1708807923274,-591.93,0.00019569,2]
[315086295,1708807923305,-500.0,0.0001957,2]
[315086296,1708807923335,-884.82,0.0001957,2]
[315086297,1708807923363,-500.0,0.0001957,2]
[315086298,1708807923392,-500.0,0.0001957,2]
[315086299,1708807923421,-500.0,0.0001957,2]
[315086300,1708807923450,-500.0,0.0001957,2]
[315086301,1708807923588,-793.26,0.00019571,2]
[315086302,1708807923617,-173.10351334,0.00019576,2]
[315086303,1708807923646,-217.17038783,0.00019577,2]
[315086304,1708807923678,-505.19397537,0.00019578,2]
[315086305,1708807923709,-505.19397537,0.00019578,2]
[315086306,1708807923738,-505.19397537,0.00019578,2]
[315086307,1708807923769,-505.19397537,0.00019578,2]
[315086308,1708807923799,-505.19397537,0.00019578,2]
[315086309,1708807923830,-505.19397537,0.00019578,2]
[315086310,1708807923861,-505.19397537,0.00019578,2]
[315086311,1708807923894,-505.19397537,0.00019578,2]
[315086312,1708807923928,-505.19397537,0.00019578,2]
[315086313,1708807923958,-505.19397537,0.00019578,2]
[315086314,1708807923988,-505.19397537,0.00019578,2]
[315086315,1708807924020,-505.19397537,0.00019578,2]
[315086316,1708807924049,-505.19397537,0.00019578,2]
[315086317,1708807924079,-505.19397537,0.00019578,2]
[315086318,1708807924109,-505.19397537,0.00019578,2]
[315086319,1708807924138,-505.19397537,0.00019578,2]
[315086320,1708807924168,-505.19397537,0.00019578,2]
[315086321,1708807924198,-505.19397537,0.00019578,2]
[315086322,1708807924228,-505.19397537,0.00019578,2]
[315086323,1708807924258,-505.19397537,0.00019578,2]
[315086324,1708807924288,-505.19397537,0.00019578,2]
[315086325,1708807924319,-505.19397537,0.00019578,2]
[315086326,1708807924349,-505.19397537,0.00019578,2]
[315086327,1708807924382,-505.19397537,0.00019578,2]
[315086328,1708807924412,-505.19397537,0.00019578,2]
[315086329,1708807924443,-505.19397537,0.00019578,2]
[315086330,1708807924476,-505.19397537,0.00019578,2]
[315086331,1708807924509,-505.19397537,0.00019578,2]
[315086332,1708807924541,-505.19397537,0.00019578,2]
[315086333,1708807924570,-500.0,0.00019578,2]
[315086334,1708807924599,-500.0,0.00019578,2]
[315086335,1708807924628,-500.0,0.00019578,2]
[315086336,1708807924656,-500.0,0.00019578,2]
[315086337,1708807924693,-500.0,0.00019578,2]
[315086338,1708807924722,-500.0,0.00019578,2]
[315086339,1708807924751,-500.0,0.00019578,2]
[315086340,1708807924780,-500.0,0.00019578,2]
[315086341,1708807924809,-223.07261484,0.00019578,2]
[315086342,1708807924841,-500.0,0.00019578,2]
[315086343,1708807924872,-500.0,0.00019578,2]
[315086344,1708807924901,-500.0,0.00019578,2]
[315086345,1708807924932,-500.0,0.00019578,2]
[315086346,1708807925062,-435.81188588,0.00019578,2]
[315086347,1708807925094,-500.0,0.00019578,2]
[315086348,1708807925125,-500.0,0.00019578,2]
[315086349,1708807925155,-500.0,0.00019578,2]
[315086350,1708807925186,-500.0,0.00019578,2]
[315086351,1708807925217,-500.0,0.00019578,2]
[315086352,1708807925248,-500.0,0.00019578,2]
[315086353,1708807925279,-500.0,0.00019578,2]
[315086354,1708807925309,-500.0,0.00019578,2]
[315086355,1708807925338,-500.0,0.00019578,2]
[315086356,1708807925368,-500.0,0.00019578,2]
[315086357,1708807925399,-500.0,0.00019578,2]
[315086358,1708807925428,-500.0,0.00019578,2]
[315086359,1708807925458,-500.0,0.00019578,2]
[315086360,1708807925490,-500.0,0.00019578,2]
[315086361,1708807925521,-500.0,0.00019578,2]
[315086362,1708807925552,-500.0,0.00019578,2]
[315086363,1708807925584,-500.0,0.00019578,2]
[315086364,1708807925614,-500.0,0.00019578,2]
[315086365,1708807925645,-500.0,0.00019578,2]
[315086366,1708807925678,-500.0,0.00019578,2]
[315086367,1708807925709,-500.0,0.00019578,2]
[315086368,1708807925741,-500.0,0.00019578,2]
[315086369,1708807925773,-493.33293999,0.00019578,2]
[315086370,1708807925804,-500.0,0.00019578,2]
[315086371,1708807925841,-500.0,0.00019578,2]
[315086372,1708807925873,-500.0,0.00019578,2]